bitfinex-derivatives/quotes_ETHF0:USTF0_20251008
["timestamp","ask_amount","ask_price","bid_price","bid_amount"]
[1759923554669,2.87160236,4489.5,4489.1,0.5644]
[1759923554872,2.87160236,4489.5,4489.4,0.7828]
[1759923555069,2.87160236,4489.5,4489.4,0.34252737]
[1759923558574,2.87160236,4489.5,4489.4,0.56602737]
[1759923559179,2.87160236,4489.5,4489.4,0.77162737]
[1759923563779,1.18792011,4491.6,4489.6,0.3165]
[1759923563986,0.53398622,4491.5,4489.6,0.3165]
[1759923564180,2.89952694,4491.2,4489.6,0.3165]
[1759923564380,0.53398622,4491.1,4489.6,0.3165]
[1759923564582,0.53398622,4491.0,4489.6,0.3165]
[1759923564780,0.53398622,4490.9,4489.6,0.3165]
[1759923565075,0.53398622,4490.8,4489.6,0.3165]
[1759923565375,2.95142003,4490.7,4489.6,0.3165]
[1759923565776,2.95142003,4490.8,4489.6,0.3165]
[1759923565986,0.00200636,4491.0,4489.6,0.3165]
[1759923566187,2.91080177,4490.7,4489.6,0.3165]
[1759923566386,2.91080177,4490.8,4489.6,0.3165]
[1759923566582,0.53375261,4490.7,4489.6,0.3165]
[1759923566783,0.00200636,4491.0,4489.6,0.3165]
[1759923567086,2.91080177,4490.7,4489.6,0.3165]
[1759923567277,2.91080177,4490.9,4489.6,0.3165]
[1759923567480,2.93228505,4490.6,4489.6,0.3165]
[1759923567682,2.93228505,4490.7,4489.6,0.3165]
[1759923567882,2.93228505,4490.9,4489.6,0.3165]
[1759923568083,0.53377424,4490.8,4489.6,0.3165]
[1759923568278,0.53377424,4490.7,4489.6,0.3165]
[1759923568487,0.53377424,4490.6,4489.6,0.3165]
[1759923568683,0.53377424,4490.6,4489.6,0.5302]
[1759923568982,2.8314087,4490.5,4489.8,0.2137]
[1759923569184,2.8314087,4490.5,4490.0,0.1369]
[1759923569383,2.88973722,4490.9,4490.1,0.3165]
[1759923569588,0.53403044,4490.8,4490.1,0.3165]
[1759923569786,0.53403044,4490.7,4490.1,0.3165]
[1759923569988,0.53403044,4490.6,4490.0,0.3506]
[1759923570278,2.83910487,4490.5,4490.0,0.3506]
[1759923570679,2.83910487,4490.5,4490.1,0.3165]
[1759923571382,2.83910487,4490.5,4490.0,0.3506]
[1759923571583,2.83910487,4490.5,4490.1,0.3165]
[1759923571890,2.83910487,4490.5,4490.0,0.1369]
[1759923572084,2.83910487,4490.5,4490.1,0.3165]
[1759923572284,0.53368148,4490.4,4490.0,0.3506]
[1759923572485,2.83910487,4490.5,4490.0,0.3506]
[1759923572684,2.84449196,4490.3,4490.1,0.3165]
[1759923572883,2.84449196,4490.5,4490.0,0.3506]
[1759923573187,2.8700151,4490.3,4490.0,0.1369]
[1759923573387,2.8700151,4490.5,4490.1,0.3165]
[1759923573585,0.53386765,4490.4,4489.5,0.1369]
[1759923573883,3.40388275,4490.3,4489.5,0.1369]
[1759923574089,0.53386765,4490.2,4489.5,0.1369]
[1759923574291,0.53386765,4490.1,4489.5,0.1369]
[1759923574480,0.53386765,4490.0,4489.5,0.1369]
[1759923574685,0.53386765,4490.0,4489.5,0.4534]
[1759923574984,3.49186338,4489.9,4489.4,0.00162737]
[1759923575190,0.53386765,4489.8,4489.4,0.00162737]
[1759923575687,35.94692011,4490.6,4489.4,0.31812737]
[1759923575688,3.46556744,4489.7,4489.4,0.31812737]
[1759923575889,0.53386765,4489.6,4489.4,0.31812737]
[1759923576281,3.46949113,4489.5,4489.4,0.31812737]
[1759923576478,3.69249113,4489.5,4489.4,0.31812737]
[1759923576682,0.75773033,4489.5,4489.4,0.31812737]
[1759923576882,3.69249113,4489.5,4489.4,0.31812737]
[1759923577285,3.1577608,4489.5,4489.4,0.31812737]
[1759923577487,3.69283152,4489.5,4489.4,0.31812737]
[1759923579190,3.1577608,4489.5,4489.4,0.31812737]
[1759923579392,3.69332386,4489.5,4489.4,0.31812737]
[1759923587502,3.47032386,4489.5,4489.4,0.75042737]
[1759923587701,3.69332386,4489.5,4489.4,0.75042737]
[1759923587895,3.47032386,4489.5,4489.4,0.75042737]
[1759923588300,3.1577608,4489.5,4489.4,0.75042737]
[1759923588495,2.9347608,4489.5,4489.4,0.75042737]
[1759923588801,34.758,4490.3,4490.1,0.5491]
[1759923588990,0.75968988,4490.2,4490.1,0.5491]
[1759923589197,3.69948896,4490.2,4490.1,0.3403]
[1759923591003,3.69948896,4490.2,4490.0,0.1326]
[1759923591197,0.53668988,4490.1,4490.0,0.4729]
[1759923591398,0.53668988,4490.1,4490.0,0.3403]
[1759923591699,3.44132167,4490.1,4490.0,0.3403]
[1759923592804,3.44132167,4490.1,4490.0,0.4729]
[1759923595404,3.44132167,4490.1,4489.6,0.3403]
[1759923595604,0.75968988,4490.0,4489.4,0.00162737]
[1759923595800,0.53668988,4489.9,4489.4,0.00162737]
[1759923596000,0.75968988,4489.8,4489.4,0.00162737]
[1759923596303,3.47875482,4489.7,4489.4,0.00162737]
[1759923596499,0.75968988,4489.6,4489.4,0.00162737]
[1759923596702,0.53668988,4489.5,4489.4,0.34192737]
[1759923596905,3.47875482,4489.5,4489.4,0.34192737]
[1759923597104,3.47875482,4489.5,4489.4,0.00162737]
[1759923600706,3.47875482,4489.5,4489.4,0.34192737]
[1759923601011,3.47875482,4489.5,4489.4,0.55072737]
[1759923601208,38.45875482,4489.5,4489.4,0.55072737]
[1759923601911,3.47875482,4489.5,4489.4,0.55072737]
[1759923602202,3.70175482,4489.5,4489.4,0.00162737]
[1759923602403,3.70175482,4489.5,4489.4,2.737e-05]
[1759923602608,3.70175482,4489.5,4488.5,0.4765]
[1759923602805,0.53668988,4489.4,4488.5,0.4765]
[1759923603005,0.75968988,4489.3,4488.1,0.3403]
[1759923603205,0.53668988,4489.2,4488.1,0.3403]
[1759923603401,0.75968988,4489.1,4488.1,0.3403]
[1759923603606,0.53668988,4489.0,4488.1,0.34186845]
[1759923603911,3.71360177,4488.9,4488.1,0.34186845]
[1759923604211,0.53668988,4488.8,4488.2,0.3403]
[1759923604414,0.75968988,4488.7,4488.1,0.34186845]
[1759923604614,0.53668988,4488.6,4488.2,0.3403]
[1759923604812,0.75968988,4488.5,4488.1,0.00156845]
[1759923605012,0.223,4488.5,4488.2,0.3403]
[1759923605311,2.83080874,4488.4,4488.2,0.5491]
[1759923605510,0.223,4488.3,4488.2,0.5491]
[1759923605910,3.0968871,4488.3,4488.2,0.5491]
[1759923606315,3.0968871,4488.3,4488.2,0.3403]
[1759923607419,3.0968871,4488.3,4488.1,0.00156845]
[1759923607713,3.0968871,4488.3,4488.2,0.3403]
[1759923607916,3.0968871,4488.3,4488.2,0.5491]
[1759923608113,2.8738871,4488.3,4488.2,0.5491]
[1759923608315,1.18792011,4489.7,4488.2,0.4323]
[1759923608515,1.18792011,4489.7,4488.3,0.3403]
[1759923608719,2.9162913,4489.4,4488.3,0.3403]
[1759923609012,0.70497191,4489.3,4488.4,0.3403]
[1759923609216,0.52997191,4489.2,4488.6,0.3403]
[1759923609414,35.51297191,4489.1,4488.6,0.5491]
[1759923609614,0.52997191,4489.0,4488.6,0.3403]
[1759923609812,0.223,4488.9,4488.7,0.5491]
[1759923610012,3.15432874,4488.9,4488.8,0.3403]
[1759923610315,2.93132874,4488.9,4488.8,0.3403]
[1759923610509,37.91532874,4488.9,4488.8,0.3403]
[1759923610712,34.984,4488.9,4488.8,0.3403]
[1759923611012,37.92235551,4488.9,4488.8,0.3403]
[1759923611516,2.93835551,4488.9,4488.8,0.3403]
[1759923611715,3.16135551,4488.9,4488.8,0.5491]
[1759923611912,2.86001963,4489.9,4489.0,0.1326]
[1759923612116,0.52976194,4489.8,4489.6,0.5491]
[1759923612318,2.89040616,4489.9,4489.8,0.3403]
[1759923612511,0.52984187,4489.9,4489.8,0.5491]
[1759923612716,0.75284187,4489.9,4489.8,0.5491]
[1759923612917,3.64324803,4489.9,4489.6,0.3403]
[1759923613109,0.52984785,4489.8,4488.5,0.1326]
[1759923613318,0.75287974,4489.7,4488.6,0.5491]
[1759923613621,3.14123563,4489.7,4488.7,0.2088]
[1759923613822,34.985,4489.6,4489.1,0.5491]
[1759923614023,2.91823563,4489.7,4489.5,0.1326]
[1759923614223,34.985,4489.6,4489.5,0.1326]
[1759923614427,37.91128901,4489.6,4489.5,0.1326]
[1759923614721,34.985,4489.6,4489.5,0.1326]
[1759923615122,37.91128901,4489.6,4489.3,0.3403]
[1759923615319,0.52969036,4489.5,4488.1,0.00156845]
[1759923615520,1.41092011,4489.4,4487.3,0.3403]
[1759923615721,1.18792011,4488.8,4487.0,0.1326]
[1759923615925,0.223,4488.7,4487.2,0.2088]
[1759923616225,35.51469036,4488.6,4487.3,0.5491]
[1759923616415,0.52969036,4488.5,4487.3,0.5491]
[1759923616622,0.52969036,4488.4,4487.3,0.55175166]
[1759923616926,3.47041499,4488.3,4487.3,0.55175166]
[1759923617123,35.51469036,4488.2,4487.3,0.55175166]
[1759923617323,0.52969036,4488.1,4487.4,0.3137]
[1759923617518,35.51569036,4488.0,4487.5,0.1341]
[1759923617724,34.986,4488.0,4487.5,0.1341]
[1759923617917,2.93541841,4487.9,4487.6,0.3137]
[1759923618122,34.987,4487.8,4487.6,0.3137]
[1759923618324,0.00173952,4487.8,4487.5,0.1341]
[1759923618524,3.07561041,4487.7,4487.6,0.3137]
[1759923618826,2.85261041,4487.7,4487.6,0.3137]
[1759923619126,3.07561041,4487.7,4487.6,0.3137]
[1759923619819,2.85261041,4487.7,4487.6,0.3137]
[1759923620029,2.85261041,4487.7,4487.6,0.7499]
[1759923620230,3.07561041,4487.7,4487.6,0.7499]
[1759923624633,3.07561041,4487.7,4487.3,0.00265166]
[1759923624933,3.07561041,4487.7,4487.5,0.1341]
[1759923625133,3.07561041,4487.7,4487.6,0.3137]
[1759923625829,3.07561041,4487.7,4487.6,0.5257]
[1759923630134,2.85261041,4487.7,4487.6,0.5257]
[1759923630334,3.07561041,4487.7,4487.6,0.5257]
[1759923633336,2.85261041,4487.7,4487.6,0.7499]
[1759923633529,3.07561041,4487.7,4487.6,0.7499]
[1759923634639,2.85261041,4487.7,4487.6,0.7499]
[1759923634835,0.00173952,4487.8,4487.6,5.4362]
[1759923635041,0.00173952,4487.8,4487.7,0.7499]
[1759923635242,0.01773952,4487.8,4487.7,0.7499]
[1759923637244,2.9149707,4487.8,4487.7,0.3137]
[1759923637840,3.1219707,4487.8,4487.7,0.3137]
[1759923638041,2.8989707,4487.8,4487.7,0.3137]
[1759923638243,3.1219707,4487.8,4487.7,0.3137]
[1759923638440,2.8989707,4487.8,4487.7,0.5257]
[1759923638640,3.1219707,4487.8,4487.7,0.5257]
[1759923639539,3.1219707,4487.8,4487.7,0.3137]
[1759923643445,3.1219707,4487.8,4487.7,0.5314]
[1759923643747,2.8989707,4487.8,4487.7,0.5314]
[1759923643948,3.1219707,4487.8,4487.7,0.5314]
[1759923645551,2.8989707,4487.8,4487.7,0.3137]
[1759923645848,3.1219707,4487.8,4487.7,0.3137]
[1759923647345,2.8989707,4487.8,4487.7,0.7418]
[1759923647545,0.22473952,4487.8,4487.7,0.7418]
[1759923649353,0.00173952,4487.8,4487.7,0.7418]
[1759923649554,0.22473952,4487.8,4487.7,0.7418]
[1759923650151,0.00173952,4487.8,4487.7,0.7418]
[1759923650452,0.02673952,4487.8,4487.7,0.7418]
[1759923652952,0.00173952,4487.8,4487.7,0.7418]
[1759923653154,0.02673952,4487.8,4487.7,0.7418]
[1759923654255,0.00173952,4487.8,4487.7,0.7418]
[1759923654455,0.22473952,4487.8,4487.7,0.7418]
[1759923656855,0.22473952,4487.8,4487.7,0.3137]
[1759923657055,0.22473952,4487.8,4487.7,0.5246]
[1759923658356,3.11454107,4487.8,4487.7,0.3137]
[1759923660255,3.11454107,4487.8,4487.5,0.4588]
[1759923660858,3.11454107,4487.8,4487.6,0.3247]
[1759923661260,3.11454107,4487.8,4487.5,0.1341]
[1759923662059,3.11454107,4487.8,4487.3,0.00265166]
[1759923662356,0.53280351,4487.7,4487.3,0.00265166]
[1759923662562,0.53280351,4487.6,4487.3,0.00265166]
[1759923662762,0.75580351,4487.5,4487.3,0.00265166]
[1759923662962,0.53280351,4487.4,4487.3,0.00265166]
[1759923663165,3.48109327,4487.4,4487.3,0.00265166]
[1759923663663,3.48109327,4487.4,4487.3,0.32735166]
[1759923665164,3.70409327,4487.4,4487.3,0.32735166]
[1759923665766,3.70409327,4487.4,4487.3,0.00265166]
[1759923667958,3.70409327,4487.4,4486.6,0.3247]
[1759923668156,0.53280351,4487.3,4486.6,0.3247]
[1759923668360,0.75580351,4487.2,4486.6,0.3247]
[1759923668567,3.06225793,4487.2,4486.6,0.3247]
[1759923668964,3.06225793,4487.2,4486.6,0.32676187]
[1759923672166,3.06225793,4487.2,4486.6,0.53766187]
[1759923672365,3.06225793,4487.2,4486.7,0.3247]
[1759923672566,3.06225793,4487.2,4486.6,0.00206187]
[1759923672567,2.83925793,4487.2,4487.0,0.1319]
[1759923672767,0.223,4487.1,4487.0,0.4566]
[1759923673167,3.06670165,4487.1,4487.0,0.4566]
[1759923675264,3.06670165,4487.1,4486.7,0.3247]
[1759923676573,3.06670165,4487.1,4486.7,0.3138]
[1759923676775,3.06670165,4487.1,4486.6,0.21736187]
[1759923677075,3.06670165,4487.1,4486.7,0.3138]
[1759923677477,3.06670165,4487.1,4486.6,0.00206187]
[1759923678472,3.06670165,4487.1,4486.7,0.3138]
[1759923678978,3.06670165,4487.1,4486.6,0.00206187]
[1759923679172,3.06670165,4487.1,4486.7,0.3138]
[1759923679476,3.06670165,4487.1,4486.6,0.00206187]
[1759923679878,3.06670165,4487.1,4486.6,0.21736187]
[1759923680077,3.06670165,4487.1,4486.7,0.3138]
[1759923681077,2.84370165,4487.1,4486.6,0.21736187]
[1759923681272,0.223,4487.0,4486.6,0.00206187]
[1759923681476,0.223,4487.0,4486.6,0.21736187]
[1759923681676,2.88343308,4486.9,4486.6,0.21736187]
[1759923681879,0.223,4486.8,4486.7,0.3138]
[1759923682279,3.10643308,4486.8,4486.7,0.3138]
[1759923683687,3.10643308,4486.8,4486.7,0.5291]
[1759923683877,2.88343308,4486.8,4486.7,0.5291]
[1759923684081,3.10643308,4486.8,4486.7,0.5291]
[1759923684381,3.10643308,4486.8,4486.6,0.00206187]
[1759923684382,2.90944724,4487.7,4487.1,0.2153]
[1759923684576,35.53031773,4487.6,4487.5,0.438]
[1759923684883,3.46039144,4487.6,4487.5,0.438]
[1759923685191,38.45939144,4487.6,4487.5,0.438]
[1759923685781,3.46039144,4487.6,4487.5,0.6533]
[1759923685986,2.92907371,4487.6,4487.5,0.8643]
[1759923686181,3.15207371,4487.6,4487.5,0.8643]
[1759923686386,0.223,4487.6,4487.5,0.8643]
[1759923686688,3.16364157,4487.6,4487.5,0.8643]
[1759923686887,2.94064157,4487.6,4487.5,0.8643]
[1759923687081,3.16364157,4487.6,4487.5,0.8643]
[1759923687277,0.223,4487.6,4487.5,0.8643]
[1759923687480,3.15949016,4487.6,4487.5,0.8643]
[1759923689893,2.93649016,4487.6,4487.5,0.8643]
[1759923690088,3.15949016,4487.6,4487.5,0.8643]
[1759923690289,2.91902698,4487.7,4487.6,0.3138]
[1759923690489,0.75487465,4487.7,4487.6,0.5291]
[1759923690694,3.6182459,4487.7,4487.6,0.5291]
[1759923691695,3.3952459,4487.7,4487.6,0.5291]
[1759923691895,3.6182459,4487.7,4487.6,0.5291]
[1759923695903,3.6182459,4487.7,4487.0,0.1242]
[1759923696100,0.53285191,4487.6,4487.0,0.1242]
[1759923696301,0.223,4487.5,4487.1,0.3138]
[1759923696500,3.18459908,4487.5,4487.1,0.5291]
[1759923696700,3.18459908,4487.5,4487.2,0.2153]
[1759923696905,2.96159908,4487.5,4487.1,0.5291]
[1759923697103,2.96159908,4487.5,4487.3,0.2153]
[1759923697304,0.223,4487.4,4487.3,0.2153]
[1759923697499,0.223,4487.4,4487.3,0.5291]
[1759923697701,2.93521004,4487.4,4487.3,0.7401]
[1759923697901,0.00173952,4487.8,4487.7,0.4263]
[1759923698102,0.03873952,4487.8,4487.7,0.7401]
[1759923698605,0.00173952,4487.8,4487.7,0.7401]
[1759923698805,0.01773952,4487.8,4487.7,0.7401]
[1759923700007,0.00173952,4487.8,4487.7,0.7401]
[1759923700206,0.22473952,4487.8,4487.7,0.7401]
[1759923702709,1.18792011,4489.4,4487.7,0.7401]
[1759923703009,2.88694072,4488.6,4488.5,0.1245]
[1759923703210,0.53226474,4488.6,4488.5,0.4417]
[1759923703506,3.6745759,4488.6,4488.5,0.4417]
[1759923704012,3.67639203,4488.6,4488.5,0.4417]
[1759923704213,3.45339203,4488.6,4488.5,0.4417]
[1759923704512,3.67639203,4488.6,4488.5,0.4417]
[1759923706812,3.45339203,4488.6,4488.5,0.4417]
[1759923707015,3.67639203,4488.6,4488.5,0.4417]
[1759923707313,3.45339203,4488.6,4488.5,0.4417]
[1759923707513,3.45339203,4488.6,4488.5,0.6622]
[1759923707712,3.67639203,4488.6,4488.5,0.8863]
[1759923708015,3.67639203,4488.6,4488.5,0.6622]
[1759923709613,3.67639203,4488.6,4488.5,0.4417]
[1759923710817,3.45339203,4488.6,4488.5,0.4417]
[1759923711018,3.67639203,4488.6,4488.5,0.4417]
[1759923711219,3.45339203,4488.6,4488.5,0.4417]
[1759923711418,3.67639203,4488.6,4488.5,0.4417]
[1759923715222,3.45339203,4488.6,4488.5,0.4417]
[1759923715417,3.67639203,4488.6,4488.5,0.4417]
[1759923720822,3.67652212,4488.6,4488.5,0.4417]
[1759923721819,3.67652212,4488.6,4488.5,0.6612]
[1759923722924,3.45352212,4488.6,4488.5,0.6612]
[1759923723125,3.45352212,4488.6,4488.5,0.8853]
[1759923723324,0.75721096,4488.6,4488.5,0.8853]
[1759923729129,0.53421096,4488.6,4488.5,0.8853]
[1759923729328,0.75721096,4488.6,4488.5,0.8853]
[1759923729927,0.53421096,4488.6,4488.5,0.8853]
[1759923730327,0.74221096,4488.6,4488.5,0.8853]
[1759923731326,0.53421096,4488.6,4488.5,0.8853]
[1759923731522,0.00181613,4488.6,4488.5,0.8853]
[1759923732029,0.03881613,4488.6,4488.5,0.8853]
[1759923732537,0.00181613,4488.6,4488.5,0.8853]
[1759923732737,0.22481613,4488.6,4488.5,0.8853]
[1759923736934,1.18792011,4490.2,4490.0,0.1255]
[1759923737226,0.75538484,4490.1,4490.0,0.4619]
[1759923737628,3.64514262,4490.1,4490.0,0.6803]
[1759923737830,3.64691274,4490.1,4490.0,0.90165054]
[1759923739229,3.42391274,4490.1,4490.0,0.90165054]
[1759923739430,3.64691274,4490.1,4490.0,0.90165054]
[1759923739636,3.64691274,4490.1,4490.0,0.68225054]
[1759923740239,3.42391274,4490.1,4490.0,0.46385054]
[1759923740440,3.64691274,4490.1,4490.0,0.46385054]
[1759923742141,3.42391274,4490.1,4490.0,0.46385054]
[1759923742443,3.64691274,4490.1,4490.0,0.46385054]
[1759923743339,3.42391274,4490.1,4490.0,0.46385054]
[1759923743535,3.64691274,4490.1,4490.0,0.46385054]
[1759923743733,3.42391274,4490.1,4490.0,0.46385054]
[1759923744032,3.64691274,4490.1,4490.0,0.46385054]
[1759923744333,3.64691274,4490.1,4490.0,0.68225054]
[1759923745132,3.42391274,4490.1,4490.0,0.68225054]
[1759923745329,3.64691274,4490.1,4490.0,0.90165054]
[1759923745740,3.1145279,4490.1,4490.0,0.90165054]
[1759923746441,2.8915279,4490.1,4490.0,0.90165054]
[1759923746636,3.1145279,4490.1,4490.0,0.90165054]
[1759923748247,4.04639867,4490.1,4490.0,0.68225054]
[1759923749244,3.5152879,4490.1,4490.0,0.68225054]
[1759923749743,3.2922879,4490.1,4490.0,0.68225054]
[1759923749943,3.5152879,4490.1,4490.0,0.68225054]
[1759923750244,3.2922879,4490.1,4490.0,0.68225054]
[1759923750448,3.5152879,4490.1,4490.0,0.68225054]
[1759923753146,3.5152879,4490.1,4490.0,0.46385054]
[1759923753343,4.04556086,4490.1,4490.0,0.46385054]
[1759923753545,3.5152879,4490.1,4490.0,0.46385054]
[1759923753744,4.04552703,4490.1,4490.0,0.46385054]
[1759923753950,3.82252703,4490.1,4490.0,0.46385054]
[1759923754248,4.04552703,4490.1,4490.0,0.46385054]
[1759923757856,4.04552703,4490.1,4490.0,0.68225054]
[1759923760953,4.04552703,4490.1,4490.0,0.00195054]
[1759923767854,3.82252703,4490.1,4490.0,0.46205054]
[1759923768055,3.82252703,4490.1,4490.0,0.90755054]
[1759923768359,4.04552703,4490.1,4490.0,0.90755054]
[1759923768553,3.42176703,4490.1,4490.0,0.90755054]
[1759923768753,0.75500925,4490.1,4490.0,0.90755054]
[1759923768956,0.53200925,4490.1,4490.0,0.90755054]
[1759923769259,0.75500925,4490.1,4490.0,0.90755054]
[1759923769659,0.75500925,4490.1,4490.0,1.30832054]
[1759923769864,0.75500925,4490.1,4490.0,0.90755054]
[1759923770158,1.15576925,4490.1,4490.0,0.90755054]
[1759923771162,0.93276925,4490.1,4490.0,0.90755054]
[1759923771362,0.75500925,4490.1,4490.0,1.30832054]
[1759923772062,0.22477012,4490.1,4490.0,1.30832054]
[1759923772656,0.62553012,4490.1,4490.0,1.30832054]
[1759923773163,0.40253012,4490.1,4490.0,1.30832054]
[1759923773363,0.62553012,4490.1,4490.0,1.30832054]
[1759923774665,0.22477012,4490.1,4490.0,1.30832054]
[1759923775765,0.62553012,4490.1,4490.0,1.30832054]
[1759923775955,0.62553012,4490.1,4490.0,0.90755054]
[1759923778167,0.62553012,4490.1,4490.0,1.30832054]
[1759923778470,0.62553012,4490.1,4490.0,0.46205054]
[1759923778765,0.62553012,4490.1,4490.0,0.68135054]
[1759923778965,0.62553012,4490.1,4490.0,0.90755054]
[1759923779670,0.62553012,4490.1,4490.0,0.46205054]
[1759923780267,0.62553012,4490.1,4490.0,0.68135054]
[1759923781575,4.10501444,4490.1,4490.0,0.00195054]
[1759923792272,4.10501444,4490.1,4490.0,0.33395054]
[1759923792473,38.86201444,4490.1,4490.0,0.33395054]
[1759923792868,38.86201444,4490.1,4490.0,0.00195054]
[1759923794779,3.88201444,4490.1,4490.0,0.00195054]
[1759923794980,38.86201444,4490.1,4490.0,0.00195054]
[1759923797078,3.88201444,4490.1,4490.0,0.43925054]
[1759923797283,4.10501444,4490.1,4490.0,0.65195054]
[1759923797481,3.88201444,4490.1,4490.0,0.43925054]
[1759923797682,4.10501444,4490.1,4490.0,0.43925054]
[1759923799685,4.10501444,4490.1,4490.0,0.65195054]
[1759923800287,3.88201444,4490.1,4490.0,0.65195054]
[1759923800486,4.10501444,4490.1,4490.0,0.65195054]
[1759923802582,3.88201444,4490.1,4490.0,0.65195054]
[1759923802782,3.88201444,4490.1,4490.0,0.87275054]
[1759923802986,3.57329715,4490.1,4490.0,0.87275054]
[1759923805289,2.94953715,4490.1,4490.0,0.87275054]
[1759923805485,3.57329715,4490.1,4490.0,0.87275054]
[1759923806692,3.35029715,4490.1,4490.0,0.87275054]
[1759923807182,3.57329715,4490.1,4490.0,0.87275054]
[1759923807882,0.40253012,4490.1,4490.0,1.27352054]
[1759923808089,0.62553012,4490.1,4490.0,1.27352054]
[1759923808694,0.22477012,4490.1,4490.0,1.27352054]
[1759923811399,0.62553012,4490.1,4490.0,1.27352054]
[1759923811599,0.22477012,4490.1,4490.0,1.27352054]
[1759923813804,0.62553012,4490.1,4490.0,1.27352054]
[1759923814704,0.00177012,4490.1,4490.0,1.27352054]
[1759923814905,0.22477012,4490.1,4490.0,1.27352054]
[1759923815306,0.62553012,4490.1,4490.0,1.27352054]
[1759923816105,0.22477012,4490.1,4490.0,1.27352054]
[1759923817307,0.62553012,4490.1,4490.0,1.27352054]
[1759923823512,0.62553012,4490.1,4490.0,0.87275054]
[1759923824016,0.62553012,4490.1,4490.0,1.27352054]
[1759923824309,0.40253012,4490.1,4490.0,1.27352054]
[1759923824517,0.62553012,4490.1,4490.0,1.27352054]
[1759923826516,0.62553012,4490.1,4490.0,0.87275054]
[1759923826716,0.62553012,4490.1,4490.0,0.00195054]
[1759923826911,3.54928194,4490.1,4490.0,0.00195054]
[1759923827315,3.54928194,4490.1,4490.0,0.32595054]
[1759923827717,4.08112146,4490.1,4490.0,0.00195054]
[1759923830027,4.08112146,4490.1,4490.0,0.32595054]
[1759923832430,4.08112146,4490.1,4490.0,0.00195054]
[1759923833223,4.08112146,4490.1,4490.0,0.32595054]
[1759923833633,4.08112146,4490.1,4490.0,0.45015054]
[1759923834626,4.08112146,4490.1,4490.0,0.00195054]
[1759923847434,0.40085,4489.1,4489.0,0.4495]
[1759923847741,0.62385,4489.1,4489.0,0.4495]
[1759923847938,0.62385,4489.1,4489.0,0.6591]
[1759923848443,0.62385,4489.1,4489.0,0.66151202]
[1759923849433,0.62385,4489.1,4489.0,0.45191202]
[1759923849638,3.54174274,4489.1,4489.0,0.00241202]
[1759923850434,1.00222,4488.7,4488.0,5.371]
[1759923850634,0.53141715,4488.6,4488.0,5.371]
[1759923850840,0.53141715,4488.5,4488.0,5.371]
[1759923851035,0.53141715,4488.4,4488.0,5.371]
[1759923851235,0.53141715,4488.3,4488.0,5.371]
[1759923851435,0.40094,4488.1,4488.0,0.00260357]
[1759923851646,35.38094,4488.1,4488.0,0.00260357]
[1759923851843,38.34074046,4488.1,4488.0,0.00260357]
[1759923854034,3.36074046,4488.1,4488.0,0.00260357]
[1759923854346,38.34474046,4488.1,4488.0,0.45080357]
[1759923854843,3.36074046,4488.1,4488.0,0.45080357]
[1759923855043,38.34574046,4488.1,4488.0,0.45080357]
[1759923855640,38.34574046,4488.1,4488.0,0.32660357]
[1759923856545,3.36074046,4488.1,4488.0,0.32660357]
[1759923856744,38.34674046,4488.1,4488.0,0.32660357]
[1759923857150,3.36074046,4488.1,4488.0,0.32660357]
[1759923857345,38.34774046,4488.1,4488.0,0.32660357]
[1759923859346,38.34874046,4488.1,4488.0,0.32660357]
[1759923860849,3.36074046,4488.1,4488.0,0.32660357]
[1759923861049,38.34974046,4488.1,4488.0,0.32660357]
[1759923863656,3.36074046,4488.1,4488.0,0.65410357]
[1759923863858,3.58374046,4488.1,4488.0,0.86800357]
[1759923864356,3.58374046,4488.1,4488.0,0.44680357]
[1759923865256,3.36074046,4488.1,4488.0,0.44680357]
[1759923865457,3.58374046,4488.1,4488.0,0.44680357]
[1759923866760,3.58374046,4488.1,4488.0,0.65410357]
[1759923868660,3.58374046,4488.1,4488.0,0.44680357]
[1759923869165,3.58374046,4488.1,4488.0,0.65410357]
[1759923872561,3.58374046,4488.1,4488.0,0.44680357]
[1759923873366,3.58374046,4488.1,4488.0,0.65410357]
[1759923875166,3.58374046,4488.1,4488.0,0.44680357]
[1759923876171,3.58374046,4488.1,4488.0,0.65410357]
[1759923876961,3.58374046,4488.1,4488.0,0.86800357]
[1759923877869,3.36074046,4488.1,4488.0,0.86800357]
[1759923878074,3.58374046,4488.1,4488.0,0.86800357]
[1759923879162,4.11541563,4488.1,4488.0,0.86800357]
[1759923881176,4.11541563,4488.1,4488.0,0.65410357]
[1759923881877,4.11541563,4488.1,4488.0,0.44680357]
[1759923882278,4.11541563,4488.1,4488.0,0.65300357]
[1759923882477,3.89241563,4488.1,4488.0,0.65300357]
[1759923882680,4.11541563,4488.1,4488.0,0.86400357]
[1759923884281,4.11541563,4488.1,4488.0,0.65300357]
[1759923885380,4.49383563,4488.1,4487.4,0.211]
[1759923885591,0.40096,4487.8,4487.7,0.3391]
[1759923885886,0.40102,4487.2,4487.1,0.3391]
[1759923886089,0.62402,4487.2,4487.0,0.3391]
[1759923886382,0.40107,4486.6,4486.5,0.8805]
[1759923886582,0.62611077,4486.6,4486.5,0.88330431]
[1759923892192,0.62611077,4486.6,4486.5,1.28438431]
[1759923893992,0.62611077,4486.6,4486.5,0.86718431]
[1759923894189,0.62611077,4486.6,4486.5,0.46610431]
[1759923894891,0.62611077,4486.6,4486.5,0.86718431]
[1759923895093,0.62611077,4486.6,4486.5,0.46610431]
[1759923897191,0.62611077,4486.6,4486.5,0.68430431]
[1759923897592,0.62611077,4486.6,4486.5,0.46610431]
[1759923899498,0.00204077,4486.6,4486.5,0.89480431]
[1759923899799,0.401,4487.4,4487.2,0.3234]
[1759923899987,0.401,4487.4,4487.3,0.7521]
[1759923900191,0.624,4487.4,4487.3,0.7521]
[1759923900492,0.401,4487.4,4487.3,0.7521]
[1759923900688,0.62667941,4487.4,4487.3,0.7521]
[1759923902192,3.45899139,4487.4,4487.3,0.3234]
[1759923902393,1.00253,4487.3,4486.7,0.3234]
[1759923902592,0.40105,4486.9,4486.8,0.3234]
[1759923902992,3.23336198,4486.9,4486.8,0.3234]
[1759923903700,3.45636198,4486.9,4486.8,0.3234]
[1759923904692,0.40107,4486.6,4486.5,0.45040431]
[1759923905002,3.27493142,4486.6,4486.5,0.00280431]
[1759923905198,8.27493142,4486.6,4486.5,0.00280431]
[1759923905497,0.40114,4485.8,4485.5,0.52717]
[1759923905700,0.223,4485.7,4485.6,0.3234]
[1759923905903,0.223,4485.7,4485.6,0.7521]
[1759923906496,0.223,4485.7,4485.6,0.54445411]
[1759923907102,3.09298908,4485.7,4485.6,0.00285411]